fUSD/lending_fUSD_20241008
["ID","MTS","AMOUNT","RATE_DAILY","PERIOD"]
[340052629,1728402652021,-429.16,0.0003563,2]
[340052630,1728402652030,-358.83,0.0003563,2]
[340052631,1728402652040,-358.83,0.0003563,2]
[340052632,1728402652049,-429.16,0.0003563,2]
[340052633,1728402652059,-429.16,0.0003563,2]
[340052634,1728402652068,-358.83,0.0003563,2]
[340052635,1728402652077,-429.16,0.0003563,2]
[340052636,1728402652087,-358.83,0.0003563,2]
[340052637,1728402652096,-429.16,0.0003563,2]
[340052638,1728402652106,-358.83,0.0003563,2]
[340052639,1728402652118,-427.36,0.0003563,2]
[340052640,1728402652129,-2000.0,0.00035665,120]
[340052641,1728402652138,-254.214006,0.00035975,7]
[340052642,1728402652148,-254.214006,0.00035975,7]
[340052643,1728402652158,-151.0,0.00035975,7]
[340052644,1728402652168,-151.0,0.00035975,7]
[340052645,1728402652178,-151.0,0.00035975,7]
[340052646,1728402652187,-256.360693,0.00035975,7]
[340052647,1728402652197,-256.360693,0.00035975,7]
[340052648,1728402652207,-341.224694,0.00035975,7]
[340052649,1728402652216,-341.224694,0.00035975,7]
[340052650,1728402652227,-151.0,0.00035975,7]
[340052651,1728402652238,-296.759233,0.00035975,7]
[340052652,1728402652248,-1143.820271,0.00035975,7]
[340052653,1728402652259,-1143.820271,0.00035975,7]
[340052654,1728402652269,-151.0,0.00035975,7]
[340052655,1728402652280,-153.46616,0.00035975,7]
[340052656,1728402652290,-233.972296,0.00035975,7]
[340052657,1728402652302,-233.972296,0.00035975,7]
[340052658,1728402652312,-263.34538,0.00035975,7]
[340052659,1728402652322,-263.34538,0.00035975,7]
[340052660,1728402652331,-256.511464,0.00035975,7]
[340052661,1728402652343,-383.646035,0.00035975,7]
[340052662,1728402652354,-256.511464,0.00035975,7]
[340052663,1728402652366,-383.646035,0.00035975,7]
[340052664,1728402652376,-151.0,0.00035975,7]
[340052665,1728402652386,-340.836957,0.00035975,7]
[340052666,1728402652396,-340.836957,0.00035975,7]
[340052667,1728402652407,-151.0,0.00035975,7]
[340052668,1728402652417,-151.0,0.00035975,7]
[340052669,1728402652427,-151.0,0.00035975,7]
[340052670,1728402652436,-151.349285,0.00035975,7]
[340052671,1728402652446,-151.0,0.00035975,7]
[340052672,1728402652552,-163.608933,0.00035975,7]
[340052673,1728402652561,-163.608933,0.00035975,7]
[340052674,1728402652571,-332.643552,0.00035975,7]
[340052675,1728402652580,-332.643552,0.00035975,7]
[340052676,1728402652590,-151.0,0.00035975,7]
[340052677,1728402652599,-221.866488,0.00035975,7]
[340052678,1728402652609,-204.746264,0.00035975,7]
[340052679,1728402652618,-221.866488,0.00035975,7]
[340052680,1728402652628,-707.451329,0.00035975,7]
[340052681,1728402652637,-707.451329,0.00035975,7]
[340052682,1728402652647,-151.0,0.00035975,7]
[340052683,1728402652656,-151.0,0.00035975,7]
[340052684,1728402652668,-35087.2161712,0.00035975,2]
[340052685,1728402652678,-30253.7042424,0.00035975,2]
[340052686,1728402652688,-151.0,0.00035975,7]
[340052687,1728402652697,-151.0,0.00035975,7]
[340052688,1728402652706,-151.0,0.00035975,7]
[340052689,1728402652715,-151.0,0.00035975,7]
[340052690,1728402652725,-151.0,0.00035975,7]
[340052691,1728402652734,-151.0,0.00035975,7]
[340052692,1728402652743,-151.0,0.00035975,7]
[340052693,1728402652752,-151.0,0.00035975,7]
[340052694,1728402652762,-491.420714,0.00035975,7]
[340052695,1728402652771,-491.420714,0.00035975,7]
[340052696,1728402652781,-1574.273559,0.00035975,7]
[340052697,1728402652790,-1574.273559,0.00035975,7]
[340052698,1728402652801,-151.0,0.00035975,7]
[340052699,1728402652812,-1057.013317,0.00035975,7]
[340052700,1728402652822,-1057.013317,0.00035975,7]
[340052701,1728402652834,-151.0,0.00035975,7]
[340052702,1728402652844,-151.0,0.00035975,7]
[340052703,1728402652854,-151.0,0.00035975,7]
[340052704,1728402652864,-151.0,0.00035975,7]
[340052705,1728402652874,-4987.9059965,0.00035975,2]
[340052706,1728402652884,-4300.7867045,0.00035975,2]
[340052707,1728402652894,-151.0,0.00035975,7]
[340052708,1728402652903,-152.90879,0.00035975,7]
[340052709,1728402652914,-151.0,0.00035975,7]
[340052710,1728402652924,-151.0,0.00035975,7]
[340052711,1728402652933,-151.0,0.00035975,7]
[340052712,1728402652943,-151.0,0.00035975,7]
[340052713,1728402652953,-2140.4778924,0.00035975,2]
[340052714,1728402652963,-1845.6119396,0.00035975,2]
[340052715,1728402652974,-50000.0,0.00036,26]
[340052716,1728402652985,-50000.0,0.00036,36]
[340052717,1728402652995,-1261273.42988094,0.00036,7]
[340052718,1728402653005,-568.02445272,0.00036,7]
[340052719,1728402653016,-1000.0,0.00036,16]
[340052720,1728402653026,-500.0,0.00036,120]
[340052721,1728402653036,-927.818187,0.00036,7]
[340052722,1728402653047,-927.818187,0.00036,7]
[340052723,1728402653057,-927.818187,0.00036,7]
[340052724,1728402653068,-927.818187,0.00036,7]
[340052725,1728402653079,-151.0,0.00036,7]
[340052726,1728402653089,-151.0,0.00036,7]
[340052727,1728402653100,-151.0,0.00036,7]
[340052728,1728402653113,-275.501669,0.00036,7]
[340052729,1728402653124,-151.0,0.00036,7]
[340052730,1728402653134,-151.0,0.00036,7]
[340052731,1728402653145,-152.472266,0.00036,7]
[340052732,1728402653155,-254.214006,0.00036,7]
[340052733,1728402653166,-254.214006,0.00036,7]
[340052734,1728402653176,-153.176498,0.00036,7]
[340052735,1728402653186,-496.188665,0.00036,7]
[340052736,1728402653197,-496.188665,0.00036,7]
[340052737,1728402653209,-496.188665,0.00036,7]
[340052738,1728402653218,-496.188665,0.00036,7]
[340052739,1728402653229,-151.0,0.00036,7]
[340052740,1728402653240,-163.629079,0.00036,7]
[340052741,1728402653250,-163.629079,0.00036,7]
[340052742,1728402653259,-163.629079,0.00036,7]
[340052743,1728402653269,-163.629079,0.00036,7]
[340052744,1728402653278,-151.0,0.00036,7]
[340052745,1728402653288,-151.0,0.00036,7]
[340052746,1728402653297,-151.0,0.00036,7]
[340052747,1728402653308,-151.0,0.00036,7]
[340052748,1728402653318,-151.0,0.00036,7]
[340052749,1728402653327,-256.360693,0.00036,7]
[340052750,1728402653337,-256.360693,0.00036,7]
[340052751,1728402653346,-341.224694,0.00036,7]
[340052752,1728402653356,-341.224694,0.00036,7]
[340052753,1728402653367,-151.0,0.00036,7]
[340052754,1728402653376,-296.759233,0.00036,7]
[340052755,1728402653387,-151.0,0.00036,7]
[340052756,1728402653397,-151.0,0.00036,7]
[340052757,1728402653408,-1143.820271,0.00036,7]
[340052758,1728402653417,-1143.820271,0.00036,7]
[340052759,1728402653426,-151.0,0.00036,7]
[340052760,1728402653436,-233.972296,0.00036,7]
[340052761,1728402653445,-233.972296,0.00036,7]
[340052762,1728402653455,-151.0,0.00036,7]
[340052763,1728402653465,-152.518183,0.00036,7]
[340052764,1728402653474,-263.34538,0.00036,7]
[340052765,1728402653483,-263.34538,0.00036,7]
[340052766,1728402653493,-256.511464,0.00036,7]
[340052767,1728402653503,-383.646035,0.00036,7]
[340052768,1728402653513,-256.511464,0.00036,7]
[340052769,1728402653522,-383.646035,0.00036,7]
[340052770,1728402653532,-340.836957,0.00036,7]
[340052771,1728402653542,-340.836957,0.00036,7]
[340052772,1728402653551,-166.301758,0.00036,7]
[340052773,1728402653561,-151.0,0.00036,7]
[340052774,1728402653571,-151.0,0.00036,7]
[340052775,1728402653585,-151.0,0.00036,7]
[340052776,1728402653599,-163.608933,0.00036,7]
[340052777,1728402653611,-163.608933,0.00036,7]
[340052778,1728402653623,-332.643552,0.00036,7]
[340052779,1728402653636,-332.643552,0.00036,7]
[340052780,1728402653650,-151.0,0.00036,7]
[340052781,1728402653664,-221.866488,0.00036,7]
[340052782,1728402653679,-221.866488,0.00036,7]
[340052783,1728402653693,-707.451329,0.00036,7]
[340052784,1728402653708,-707.451329,0.00036,7]
[340052785,1728402653721,-151.0,0.00036,7]
[340052786,1728402653734,-151.0,0.00036,7]
[340052787,1728402653747,-183.82726467,0.00036,7]
[340052788,1728402653761,-151.0,0.00036,7]
[340052789,1728402653774,-154.620085,0.00036,7]
[340052790,1728402653784,-151.0,0.00036,7]
[340052791,1728402653797,-151.0,0.00036,7]
[340052792,1728402653809,-151.0,0.00036,7]
[340052793,1728402653822,-151.0,0.00036,7]
[340052794,1728402653835,-151.0,0.00036,7]
[340052795,1728402653850,-491.420714,0.00036,7]
[340052796,1728402653865,-491.420714,0.00036,7]
[340052797,1728402653879,-1574.273559,0.00036,7]
[340052798,1728402653890,-1574.273559,0.00036,7]
[340052799,1728402653900,-151.0,0.00036,7]
[340052800,1728402653913,-1057.013317,0.00036,7]
[340052801,1728402653927,-1057.013317,0.00036,7]
[340052802,1728402653940,-156.225048,0.00036,7]
[340052803,1728402653954,-151.0,0.00036,7]
[340052804,1728402653967,-224.256482,0.00036,7]
[340052805,1728402653984,-151.0,0.00036,7]
[340052806,1728402653996,-224.494397,0.00036,7]
[340052807,1728402654007,-151.0,0.00036,7]
[340052808,1728402654019,-151.0,0.00036,7]
[340052809,1728402654030,-239.167581,0.00036,7]
[340052810,1728402654042,-151.0,0.00036,7]
[340052811,1728402654054,-1004.9,0.0003612,11]
[340052812,1728402654065,-173.12,0.000363,14]
[340052813,1728402654077,-2000.0,0.00036305,120]
[340052814,1728402654088,-2330.0,0.00036463,7]
[340052815,1728402654101,-2000.0,0.00036944,120]
[340052816,1728402654115,-50000.0,0.00037,27]
[340052817,1728402654129,-50000.0,0.00037,37]
[340052818,1728402654140,-2246.0,0.00037,117]
[340052819,1728402654151,-168.21932588,0.000372,103]
[340052820,1728402654162,-168.21932588,0.000372,103]
[340052821,1728402654173,-168.21932588,0.000372,103]
[340052822,1728402654184,-160.13,0.00037491,2]
[340052823,1728402654195,-1291.0,0.000375,120]
[340052824,1728402654207,-2000.0,0.00037584,120]
[340052825,1728402654218,-221.17,0.00037641,120]
[340052826,1728402654230,-735.89,0.00037728,2]
[340052827,1728402654242,-1299.316405,0.0003776,24]
[340052828,1728402654253,-1509.5,0.00037949,2]
[340052829,1728402654264,-755.07,0.00037949,2]
[340052830,1728402654274,-423.71,0.00037949,2]
[340052831,1728402654285,-423.71,0.00037949,2]
[340052832,1728402654296,-755.07,0.00037949,2]
[340052833,1728402654307,-755.07,0.00037949,2]
[340052834,1728402654318,-423.71,0.00037949,2]
[340052835,1728402654330,-755.07,0.00037949,2]
[340052836,1728402654343,-423.71,0.00037949,2]
[340052837,1728402654355,-423.71,0.00037949,2]
[340052838,1728402654371,-755.07,0.00037949,2]
[340052839,1728402654382,-755.07,0.00037949,2]
[340052840,1728402654394,-778.36,0.00037949,2]
[340052841,1728402654406,-755.07,0.00037949,2]
[340052842,1728402654416,-795.39451296,0.0003797,2]
[340052843,1728402654428,-50000.0,0.00038,28]
[340052844,1728402654440,-50000.0,0.00038,38]
[340052845,1728402654451,-616.54386908,0.00038,120]
[340052846,1728402654463,-1000.0,0.00038,120]
[340052847,1728402654475,-927.818187,0.00038,7]
[340052848,1728402654486,-927.818187,0.00038,7]
[340052849,1728402654498,-151.0,0.00038,7]
[340052850,1728402654509,-151.0,0.00038,7]
[340052851,1728402654520,-254.214006,0.00038,7]
[340052852,1728402654533,-254.214006,0.00038,7]
[340052853,1728402654544,-496.188665,0.00038,7]
[340052854,1728402654555,-496.188665,0.00038,7]
[340052855,1728402654567,-153.484601,0.00038,7]
[340052856,1728402654578,-163.629079,0.00038,7]
[340052857,1728402654590,-163.629079,0.00038,7]
[340052858,1728402654601,-151.0,0.00038,7]
[340052859,1728402654616,-256.274375,0.00038,7]
[340052860,1728402654627,-154.439498,0.00038,7]
[340052861,1728402654638,-256.360693,0.00038,7]
[340052862,1728402654649,-256.360693,0.00038,7]
[340052863,1728402654661,-341.224694,0.00038,7]
[340052864,1728402654672,-341.224694,0.00038,7]
[340052865,1728402654684,-151.0,0.00038,7]
[340052866,1728402654695,-296.759233,0.00038,7]
[340052867,1728402654706,-151.0,0.00038,7]
[340052868,1728402654718,-1143.820271,0.00038,7]
[340052869,1728402654732,-1143.820271,0.00038,7]
[340052870,1728402654743,-151.0,0.00038,7]
[340052871,1728402654754,-233.972296,0.00038,7]
[340052872,1728402654767,-233.972296,0.00038,7]
[340052873,1728402654778,-263.34538,0.00038,7]
[340052874,1728402654789,-263.34538,0.00038,7]
[340052875,1728402654800,-256.511464,0.00038,7]
[340052876,1728402654811,-383.646035,0.00038,7]
[340052877,1728402654983,-256.511464,0.00038,7]
[340052878,1728402654997,-383.646035,0.00038,7]
[340052879,1728402655007,-340.836957,0.00038,7]
[340052880,1728402655017,-340.836957,0.00038,7]
[340052881,1728402655027,-151.0,0.00038,7]
[340052882,1728402655037,-273.789348,0.00038,7]
[340052883,1728402655046,-151.0,0.00038,7]
[340052884,1728402655056,-163.608933,0.00038,7]
[340052885,1728402655066,-163.608933,0.00038,7]
[340052886,1728402655075,-332.643552,0.00038,7]
[340052887,1728402655085,-332.643552,0.00038,7]
[340052888,1728402655094,-151.0,0.00038,7]
[340052889,1728402655104,-221.866488,0.00038,7]
[340052890,1728402655116,-221.866488,0.00038,7]
[340052891,1728402655126,-707.451329,0.00038,7]
[340052892,1728402655136,-707.451329,0.00038,7]
[340052893,1728402655146,-151.0,0.00038,7]
[340052894,1728402655158,-151.0,0.00038,7]
[340052895,1728402655168,-151.0,0.00038,7]
[340052896,1728402655178,-151.0,0.00038,7]
[340052897,1728402655188,-223.0,0.00038,7]
[340052898,1728402655198,-151.0,0.00038,7]
[340052899,1728402655207,-151.0,0.00038,7]
[340052900,1728402655217,-151.0,0.00038,7]
[340052901,1728402655226,-491.420714,0.00038,7]
[340052902,1728402655235,-491.420714,0.00038,7]
[340052903,1728402655245,-1574.273559,0.00038,7]
[340052904,1728402655255,-1574.273559,0.00038,7]
[340052905,1728402655265,-270.941436,0.00038,7]
[340052906,1728402655274,-1057.013317,0.00038,7]
[340052907,1728402655283,-1057.013317,0.00038,7]
[340052908,1728402655292,-151.0,0.00038,7]
[340052909,1728402655302,-151.0,0.00038,7]
[340052910,1728402655311,-151.0,0.00038,7]
[340052911,1728402655320,-151.0,0.00038,7]
[340052912,1728402655330,-209.771937,0.00038,7]
[340052913,1728402655341,-718.51,0.00038086,2]
[340052914,1728402655351,-150.83,0.00038086,2]
[340052915,1728402655362,-150.0,0.00038086,2]
[340052916,1728402655372,-150.0,0.00038086,2]
[340052917,1728402655382,-150.0,0.00038086,2]
[340052918,1728402655391,-150.39,0.00038086,2]
[340052919,1728402655401,-150.63,0.00038086,2]
[340052920,1728402655411,-429.16,0.00038086,2]
[340052921,1728402655421,-300.84,0.00038086,2]
[340052922,1728402655430,-318.36,0.00038086,2]
[340052923,1728402655440,-358.83,0.00038086,2]
[340052924,1728402655449,-150.0,0.00038086,2]
[340052925,1728402655459,-150.0,0.00038086,2]
[340052926,1728402655468,-429.16,0.00038086,2]
[340052927,1728402655477,-304.05,0.00038086,2]
[340052928,1728402655487,-150.0,0.00038086,2]
[340052929,1728402655498,-429.16,0.00038086,2]
[340052930,1728402655507,-150.0,0.00038086,2]
[340052931,1728402655517,-358.83,0.00038086,2]
[340052932,1728402655527,-150.0,0.00038086,2]
[340052933,1728402655537,-429.16,0.00038086,2]
[340052934,1728402655546,-358.83,0.00038086,2]
[340052935,1728402655555,-150.0,0.00038086,2]
[340052936,1728402655565,-150.0,0.00038086,2]
[340052937,1728402655576,-150.0,0.00038086,2]
[340052938,1728402655586,-150.0,0.00038086,2]
[340052939,1728402655595,-358.83,0.00038086,2]
[340052940,1728402655604,-150.0,0.00038086,2]
[340052941,1728402655613,-150.0,0.00038086,2]
[340052942,1728402655623,-358.83,0.00038086,2]
[340052943,1728402655632,-150.0,0.00038086,2]
[340052944,1728402655641,-150.0,0.00038086,2]
[340052945,1728402655651,-154.55,0.00038086,2]
[340052946,1728402655660,-743.17,0.00038086,2]
[340052947,1728402655670,-150.0,0.00038086,2]
[340052948,1728402655680,-2000.0,0.00038224,120]
[340052949,1728402655689,-500.0,0.00038356,30]
[340052950,1728402655699,-1875.0,0.00038356,2]
[340052951,1728402655708,-999.0,0.00038356,120]
[340052952,1728402655720,-216.28,0.0003836,2]
[340052953,1728402655730,-150.0,0.0003836,2]
[340052954,1728402655740,-150.0,0.0003836,2]
[340052955,1728402655749,-3000.0,0.000384,2]
[340052956,1728402655760,-2501.50151215,0.000384,2]
[340052957,1728402655770,-9749.22418205,0.00038434,90]
[340052958,1728402655780,-1000.0,0.00038493,120]
[340052959,1728402655792,-150.0,0.0003876,10]
[340052960,1728402655802,-2000.0,0.00038863,120]
[340052961,1728402655812,-87997.92815476,0.0003888,10]
[340052962,1728402656011,-1137.14180513,0.0003888,10]
[340052963,1728402656022,-2495.58714316,0.0003888,10]
[340052964,1728402656034,-740.11580003,0.0003888,10]
[340052965,1728402656266,-394.00091203,0.0001132,2]
[340052966,1728402656276,-450.0,0.00019,2]
[340052967,1728402656286,-500.0,0.0002,2]
[340052968,1728402656295,-500.0,0.00021,2]
[340052969,1728402656306,-277.42,0.00027397,10]
[340052970,1728402656316,-435.76908125,0.00030879,2]
[340052971,1728402656326,-37090.40378728,0.0003888,10]
[340052972,1728402656338,-270538.82330964,0.0003888,10]
[340052973,1728402656349,-755.07,0.00038908,2]
[340052974,1728402656358,-755.07,0.00038908,2]
[340052975,1728402656368,-755.07,0.00038908,2]
[340052976,1728402656378,-755.07,0.00038908,2]
[340052977,1728402656387,-755.07,0.00038908,2]
[340052978,1728402656398,-755.07,0.00038908,2]
[340052979,1728402656408,-755.07,0.00038908,2]
[340052980,1728402656418,-340.46,0.00038908,2]
[340052981,1728402656428,-150.0,0.00038908,2]
[340052982,1728402656439,-150.0,0.00038908,2]
[340052983,1728402656449,-150.0,0.00038908,2]
[340052984,1728402656459,-150.0,0.00038908,2]
[340052985,1728402656469,-158.59,0.00038965,2]
[340052986,1728402656479,-50000.0,0.00039,29]
[340052987,1728402656488,-50000.0,0.00039,39]
[340052988,1728402656498,-37826.53080592,0.00039,10]
[340052989,1728402656508,-2001.0,0.00039,3]
[340052990,1728402656518,-10000.0,0.00039,120]
[340052991,1728402656527,-10000.0,0.00039,120]
[340052992,1728402656537,-10000.0,0.00039,120]
[340052993,1728402656546,-3176.36847426,0.00039,120]
[340052994,1728402656556,-927.818187,0.00039,14]
[340052995,1728402656565,-927.818187,0.00039,14]
[340052996,1728402656574,-151.0,0.00039,14]
[340052997,1728402656583,-201.923953,0.00039,14]
[340052998,1728402656593,-254.214006,0.00039,14]
[340052999,1728402656602,-254.214006,0.00039,14]
[340053000,1728402656611,-496.188665,0.00039,14]
[340053001,1728402656621,-496.188665,0.00039,14]
[340053002,1728402656630,-163.629079,0.00039,14]
[340053003,1728402656639,-163.629079,0.00039,14]
[340053004,1728402656649,-151.0,0.00039,14]
[340053005,1728402656658,-256.360693,0.00039,14]
[340053006,1728402656668,-256.360693,0.00039,14]
[340053007,1728402656678,-341.224694,0.00039,14]
[340053008,1728402656688,-341.224694,0.00039,14]
[340053009,1728402656697,-151.0,0.00039,14]
[340053010,1728402656707,-296.759233,0.00039,14]
[340053011,1728402656717,-151.0,0.00039,7]
[340053012,1728402656726,-1143.820271,0.00039,14]
[340053013,1728402656735,-1143.820274,0.00039,14]
[340053014,1728402656840,-253.064544,0.00039,14]
[340053015,1728402656849,-233.972296,0.00039,14]
[340053016,1728402656859,-233.972286,0.00039,14]
[340053017,1728402656868,-263.34538,0.00039,14]
[340053018,1728402656878,-263.345389,0.00039,14]
[340053019,1728402656888,-256.511464,0.00039,14]
[340053020,1728402656897,-383.646035,0.00039,14]
[340053021,1728402656907,-256.511457,0.00039,14]
[340053022,1728402656915,-383.646034,0.00039,14]
[340053023,1728402656925,-340.836957,0.00039,14]
[340053024,1728402656935,-340.836958,0.00039,14]
[340053025,1728402656944,-151.0,0.00039,14]
[340053026,1728402656953,-151.0,0.00039,14]
[340053027,1728402656962,-163.608933,0.00039,14]
[340053028,1728402656972,-163.608931,0.00039,14]
[340053029,1728402656981,-332.643552,0.00039,14]
[340053030,1728402656991,-332.643555,0.00039,14]
[340053031,1728402657000,-151.0,0.00039,14]
[340053032,1728402657009,-221.866488,0.00039,14]
[340053033,1728402657019,-221.866488,0.00039,14]
[340053034,1728402657028,-707.451329,0.00039,14]
[340053035,1728402657038,-707.451333,0.00039,14]
[340053036,1728402657047,-258.559873,0.00039,14]
[340053037,1728402657056,-151.0,0.00039,14]
[340053038,1728402657066,-151.0,0.00039,14]
[340053039,1728402657075,-235.933439,0.00039,7]
[340053040,1728402657084,-151.0,0.00039,14]
[340053041,1728402657093,-251.917086,0.00039,14]
[340053042,1728402657102,-211.668239,0.00039,14]
[340053043,1728402657112,-491.420714,0.00039,14]
[340053044,1728402657125,-491.420714,0.00039,14]
[340053045,1728402657134,-1574.273559,0.00039,14]
[340053046,1728402657143,-1574.273559,0.00039,14]
[340053047,1728402657152,-1057.013317,0.00039,14]
[340053048,1728402657163,-1057.013317,0.00039,14]
[340053049,1728402657171,-151.0,0.00039,14]
[340053050,1728402657181,-151.0,0.00039,14]
[340053051,1728402657190,-151.0,0.00039,14]
[340053052,1728402657200,-151.0,0.00039,14]
[340053053,1728402657210,-250.52307972,0.000394,13]
[340053054,1728402657220,-3327.44638991,0.00039433,15]
[340053055,1728402657229,-999.0,0.00039452,120]
[340053056,1728402657239,-2000.0,0.00039503,120]
[340053057,1728402657249,-21955.13678732,0.00039684,90]
[340053058,1728402657258,-2563.52652495,0.00039897,2]
[340053059,1728402657267,-173.12,0.000399,14]
[340053060,1728402657277,-3613.6674124,0.00039972,2]
[340053061,1728402657286,-1550.7459868,0.00039972,2]
[340053062,1728402657295,-735.89,0.00039992,2]
[340053063,1728402657305,-411.0,0.00039996,90]
[340053064,1728402657314,-50000.0,0.0004,40]
[340053065,1728402657323,-50000.0,0.0004,30]
[340053066,1728402657332,-150.0,0.0004,2]
[340053067,1728402657342,-2286.60347942,0.0004,4]
[340053068,1728402657352,-1146.4067987,0.0004,120]
[340053069,1728402657363,-153.00954134,0.0004,30]
[340053070,1728402657372,-600.00277108,0.0004,30]
[340053071,1728402657381,-412.95851961,0.0004,30]
[340053072,1728402657391,-1073.27682291,0.0004,120]
[340053073,1728402657402,-1102.62917287,0.0004,60]
[340053074,1728402657412,-320.2418552,0.0004,120]
[340053075,1728402657421,-157.3,0.0004,120]
[340053076,1728402657431,-173.82,0.0004,120]
[340053077,1728402657441,-1872.91466295,0.0004,20]
[340053078,1728402657498,-500.0,0.00019,2]
[340053079,1728402657508,-550.0,0.00023,2]
[340053080,1728402657518,-217.10685572,0.0004,20]
[340053081,1728402657528,-1000.0,0.0004,120]
[340053082,1728402657537,-2000.0,0.00040142,120]
[340053083,1728402657547,-221.17,0.00040225,120]
[340053084,1728402657556,-999.0,0.00040547,120]
[340053085,1728402657566,-131.82393826,0.0004077,3]
[340053086,1728402657577,-268.17606174,0.0004077,3]
[340053087,1728402657587,-2000.0,0.00040782,120]
[340053088,1728402657596,-173.12,0.000408,14]
[340053089,1728402657605,-173.12,0.000408,14]
[340053090,1728402657614,-500.0,0.00040828,60]
[340053091,1728402657624,-471.01570392,0.000409,120]
[340053092,1728402657633,-471.01570392,0.000409,120]
[340053093,1728402657643,-471.01570392,0.000409,120]
[340053094,1728402657652,-471.01570392,0.000409,120]
[340053095,1728402657661,-471.01570392,0.000409,120]
[340053096,1728402657672,-471.01570392,0.000409,120]
[340053097,1728402657681,-471.01570392,0.000409,120]
[340053098,1728402657691,-471.01570392,0.000409,120]
[340053099,1728402657700,-471.01570392,0.000409,120]
[340053100,1728402657709,-471.01570392,0.000409,120]
[340053101,1728402657718,-471.01570392,0.000409,120]
[340053102,1728402657728,-471.01570392,0.000409,120]
[340053103,1728402657736,-471.01570392,0.000409,120]
[340053104,1728402657745,-471.01570392,0.000409,120]
[340053105,1728402657754,-471.01570392,0.000409,120]
[340053106,1728402657763,-471.01570392,0.000409,120]
[340053107,1728402657773,-471.01570392,0.000409,120]
[340053108,1728402657782,-471.01570392,0.000409,120]
[340053109,1728402657791,-471.01570392,0.000409,120]
[340053110,1728402657801,-471.51,0.000409,120]
[340053111,1728402657810,-658.92659408,0.000409,120]
[340053112,1728402657819,-658.92659408,0.000409,120]
[340053113,1728402657830,-658.92659408,0.000409,120]
[340053114,1728402657840,-658.92659408,0.000409,120]
[340053115,1728402657851,-658.92659408,0.000409,120]
[340053116,1728402657861,-658.92659408,0.000409,120]
[340053117,1728402657876,-658.92659408,0.000409,120]
[340053118,1728402657885,-658.92659408,0.000409,120]
[340053119,1728402657895,-658.92659408,0.000409,120]
[340053120,1728402657904,-658.92659408,0.000409,120]
[340053121,1728402657913,-658.92659408,0.000409,120]
[340053122,1728402657922,-658.92659408,0.000409,120]
[340053123,1728402657931,-658.92659408,0.000409,120]
[340053124,1728402657940,-658.92659408,0.000409,120]
[340053125,1728402657949,-658.92659408,0.000409,120]
[340053126,1728402657958,-658.92659408,0.000409,120]
[340053127,1728402657967,-658.92659408,0.000409,120]
[340053128,1728402657976,-658.92659408,0.000409,120]